bitfinex/quotes_ETHUSD_20220305
["timestamp","ask_amount","ask_price","bid_price","bid_amount"]
[1646468456729,3.84761933,2643.0,2641.8,0.3792]
[1646468456730,0.00096,2642.5,2642.0,11.9492]
[1646468456928,1.0,2643.0,2642.0,11.9492]
[1646468456929,0.01065149,2642.3,2642.2,11.9492]
[1646468457126,0.01065149,2642.3,2642.2,15.9062]
[1646468457327,0.00096,2642.9,2642.3,5.1792]
[1646468457525,1.0,2643.0,2642.7,1.00838529]
[1646468457725,1.00096,2643.0,2642.8,0.94629]
[1646468457926,1.0,2643.0,2642.8,0.94629]
[1646468458126,0.00096,2643.3,2642.8,0.94629]
[1646468458366,0.6967298,2643.4,2642.8,0.94629]
[1646468459167,0.6967298,2643.4,2643.1,1.03988186]
[1646468459371,0.6967298,2643.4,2643.1,0.94623]
[1646468460467,0.00284464,2643.4,2643.2,3.5]
[1646468460668,0.00284464,2643.4,2643.2,0.94603]
[1646468461476,0.89841565,2643.5,2643.0,3.5]
[1646468461673,0.00284462,2643.4,2643.0,3.5]
[1646468462818,0.01233677,2643.8,2643.0,3.5]
[1646468462819,0.00284466,2643.3,2643.0,3.5]
[1646468463017,0.00284466,2643.3,2643.1,0.94616]
[1646468463218,0.00284466,2643.3,2643.2,3.5]
[1646468463419,0.6967298,2644.0,2643.3,4.8]
[1646468463420,0.6774794,2644.0,2643.3,4.8]
[1646468463618,0.0143,2644.1,2643.3,4.8]
[1646468463619,0.0143,2644.1,2643.4,0.94608]
[1646468463818,0.0143,2644.1,2643.4,4.44608]
[1646468464419,0.98463892,2644.0,2643.4,5.61098735]
[1646468464620,0.98463892,2644.0,2643.4,3.5]
[1646468464822,0.98463892,2644.0,2643.2,6.129]
[1646468465019,0.98559892,2644.0,2643.2,2.629]
[1646468465220,0.00275912,2643.8,2643.2,2.629]
[1646468465719,1.14862227,2643.5,2643.2,2.629]
[1646468465969,0.00275912,2643.8,2643.2,2.629]
[1646468466171,0.0143,2644.1,2643.3,3.5]
[1646468466370,0.0143,2644.1,2643.2,2.629]
[1646468466576,0.0027589,2643.8,2643.2,2.629]
[1646468467371,1.07846469,2643.6,2643.2,2.629]
[1646468467772,0.002759,2643.8,2643.2,2.629]
[1646468468574,0.0143,2644.1,2643.2,2.629]
[1646468468773,1.03990434,2643.9,2643.2,2.629]
[1646468468975,0.00263632,2643.8,2643.2,2.629]
[1646468469819,1.22638419,2643.4,2643.2,2.629]
[1646468471830,0.00263619,2643.8,2643.2,2.629]
[1646468472327,1.55131517,2644.0,2643.2,2.629]
[1646468472328,0.00096,2643.9,2643.2,2.629]
[1646468472527,0.00265075,2643.8,2643.2,2.629]
[1646468472726,0.00265075,2643.8,2643.2,4.52128]
[1646468472727,0.99376469,2643.7,2643.2,4.52128]
[1646468472928,1.55131517,2643.6,2643.2,4.52128]
[1646468474171,1.55131517,2643.6,2643.2,3.57517]
[1646468475074,1.55131517,2643.5,2643.2,3.57517]
[1646468475273,0.00265069,2643.8,2643.2,3.57517]
[1646468475475,0.00265069,2643.8,2643.3,3.5]
[1646468475976,1.55127392,2644.0,2643.5,1.2058485]
[1646468475977,1.55223392,2644.0,2643.5,1.2058485]
[1646468476179,0.00264867,2643.8,2643.5,1.2058485]
[1646468477129,1.55127392,2644.0,2643.5,1.2058485]
[1646468477318,0.00264874,2643.8,2643.5,1.2058485]
[1646468478323,1.55127392,2644.0,2643.6,3.5]
[1646468478518,0.00264874,2643.8,2643.7,3.5]
[1646468478919,0.00264874,2643.8,2643.6,3.5]
[1646468479118,0.00264874,2643.8,2643.5,1.2058485]
[1646468479520,2.57962463,2644.0,2643.3,3.5]
[1646468479521,1.55127392,2643.9,2643.3,3.5]
[1646468479723,1.65468047,2643.4,2643.3,3.5]
[1646468479919,1.65468047,2643.4,2643.2,4.7594]
[1646468480122,1.65468047,2643.4,2643.2,2.629]
[1646468480523,0.94616229,2643.3,2643.2,2.629]
[1646468480868,1.65468047,2643.4,2643.2,2.629]
[1646468485823,1.551476,2643.3,2642.7,0.01765417]
[1646468486028,1.551476,2643.3,2643.0,0.00264883]
[1646468486625,1.551476,2643.3,2642.6,1.1304]
[1646468486824,0.93108132,2643.0,2642.6,1.1304]
[1646468487025,0.93108132,2643.0,2642.5,6.3392]
[1646468487624,0.00096,2643.3,2642.5,2.8491]
[1646468487827,1.55257873,2643.3,2642.5,2.8491]
[1646468488025,1.55257873,2643.3,2642.5,6.3491]
[1646468488225,1.55140474,2643.3,2642.6,0.00272314]
[1646468488471,1.55140474,2643.3,2642.8,0.94622]
[1646468488673,1.65468047,2643.4,2643.1,1.08541324]
[1646468489470,1.65468047,2643.4,2643.0,0.00272303]
[1646468490271,1.65468047,2643.4,2642.6,3.5]
[1646468490472,1.15648299,2643.3,2643.0,0.00263795]
[1646468491074,1.65468047,2643.4,2643.0,0.00263795]
[1646468491475,1.65468047,2643.4,2642.8,3.5]
[1646468491675,1.65468047,2643.4,2643.0,0.00263795]
[1646468492724,1.65468047,2643.4,2642.7,2.04780797]
[1646468492921,1.65468047,2643.4,2643.0,0.00263795]
[1646468493122,1.65468047,2643.4,2643.1,1.40307]
[1646468493322,1.65468047,2643.4,2643.2,3.5]
[1646468493722,1.65468047,2643.4,2643.1,0.94607]
[1646468494023,1.65468047,2643.4,2643.3,0.98539903]
[1646468494426,1.65468047,2643.4,2643.0,0.00265044]
[1646468495021,1.65468047,2643.4,2642.9,3.5]
[1646468495426,1.65468047,2643.4,2643.0,0.00265038]
[1646468495625,1.65468047,2643.4,2643.3,0.93492845]
[1646468498073,1.65468047,2643.4,2643.3,4.43492845]
[1646468498875,1.65468047,2643.4,2643.3,0.93492845]
[1646468499723,1.65468047,2643.4,2643.1,3.5]
[1646468501729,1.65468047,2643.4,2643.2,0.89105406]
[1646468505677,1.65468047,2643.4,2643.0,2.89492885]
[1646468505875,1.65468047,2643.4,2643.0,2.89228]
[1646468506077,1.65468047,2643.4,2643.0,1.89492885]
[1646468506276,1.65468047,2643.4,2643.0,0.00264885]
[1646468506479,1.65468047,2643.4,2643.0,3.27158227]
[1646468506777,1.65468047,2643.4,2643.0,4.27301034]
[1646468506977,1.65468047,2643.4,2643.1,1.18767352]
[1646468508226,1.55126438,2643.3,2643.1,1.18767352]
[1646468509122,1.55126438,2643.3,2643.0,0.00264882]
[1646468509527,1.55126438,2643.3,2642.7,4.02107]
[1646468509724,1.55126438,2643.3,2643.0,0.00264878]
[1646468510732,1.55126438,2643.3,2642.9,0.88218647]
[1646468510976,1.55126438,2643.3,2643.0,0.94890878]
[1646468511178,1.55126438,2643.3,2643.1,1.89224]
[1646468511777,1.54973485,2643.3,2643.1,1.89224]
[1646468512178,1.65468047,2643.4,2643.1,1.89224]
[1646468512378,1.65468047,2643.4,2643.1,2.8383496]
[1646468512777,1.65468047,2643.4,2643.3,0.94636259]
[1646468512977,1.65468047,2643.4,2643.0,0.00264879]
[1646468513178,1.65468047,2643.4,2642.9,2.89232]
[1646468513581,1.65468047,2643.4,2642.9,1.89232]
[1646468513979,1.65468047,2643.4,2642.8,0.457]
[1646468514479,2.58702586,2643.4,2642.8,0.457]
[1646468514725,2.58702586,2643.4,2642.7,3.7621]
[1646468515027,3.5,2643.3,2642.7,3.7621]
[1646468515724,0.98463364,2642.8,2642.7,2.5798]
[1646468515932,0.00096,2643.2,2642.7,2.5798]
[1646468516229,3.5,2643.3,2642.7,2.5798]
[1646468516830,1.65564047,2643.4,2642.7,2.5798]
[1646468517029,0.9363391,2643.3,2642.9,0.00285762]
[1646468517830,0.9363391,2643.3,2642.7,4.70767955]
[1646468518127,0.9363391,2643.3,2642.7,2.5798]
[1646468518372,0.9363391,2643.3,2643.0,0.00285757]
[1646468518972,4.4363391,2643.3,2643.0,0.00285757]
[1646468519173,4.4363391,2643.3,2642.7,2.5798]
[1646468519376,1.09159289,2642.8,2642.7,2.5798]
[1646468519975,2.34721455,2643.4,2642.7,2.5798]
[1646468520176,2.34625455,2643.4,2642.7,2.5798]
[1646468520378,3.5,2643.3,2642.7,2.5798]
[1646468520577,4.19157408,2643.3,2642.9,0.00286041]
[1646468521284,1.01846261,2643.0,2642.9,0.00286041]
[1646468521481,1.01846261,2643.0,2642.7,2.5798]
[1646468522927,1.01846261,2643.0,2642.7,2.58095756]
[1646468523127,3.5,2642.9,2642.7,0.00115756]
[1646468523329,4.8,2642.8,2642.0,3.40965202]
[1646468523529,1.01846261,2643.0,2642.0,5.41613055]
[1646468523530,0.00254075,2642.6,2642.0,5.41613055]
[1646468523931,1.07255051,2642.6,2642.0,6.22238559]
[1646468524733,1.07255051,2642.6,2642.0,3.73905504]
[1646468524734,0.00254075,2642.6,2642.0,3.73905504]
[1646468526478,1.11089968,2642.5,2642.0,3.73905504]
[1646468526677,1.11089968,2642.5,2642.0,2.7438]
[1646468527878,1.11089968,2642.5,2642.1,0.00286398]
[1646468528678,1.11089968,2642.5,2642.0,2.7438]
[1646468529081,1.11089968,2642.5,2642.2,0.0027375]
[1646468529921,1.11089968,2642.5,2642.0,2.7438]
[1646468530126,1.11089968,2642.5,2642.2,0.00273748]
[1646468531130,1.11089968,2642.5,2642.0,2.7438]
[1646468531330,0.00254075,2642.6,2642.2,0.00273748]
[1646468532328,0.00254075,2642.6,2642.0,2.7438]
[1646468532529,0.90446496,2642.6,2642.3,0.00274836]
[1646468533473,0.90446496,2642.6,2642.0,2.7438]
[1646468533871,0.90446496,2642.6,2642.3,0.00274834]
[1646468534672,0.90446496,2642.6,2642.0,2.7438]
[1646468534673,1.55178132,2642.5,2642.0,2.7438]
[1646468534872,1.04843404,2642.2,2642.0,2.7438]
[1646468535273,0.00254075,2642.6,2642.0,2.7438]
[1646468535674,3.50254075,2642.6,2641.8,0.1892]
[1646468535874,1.55183224,2642.5,2641.8,0.1892]
[1646468536283,5.05183224,2642.4,2642.2,0.00286136]
[1646468536479,5.05183224,2642.3,2642.2,0.00286136]
[1646468537134,5.05183224,2642.3,2641.8,0.1892]
[1646468537324,13.12183224,2642.2,2642.1,0.00286139]
[1646468537525,6.01548917,2642.2,2642.1,0.00286139]
[1646468537825,16.37,2642.1,2641.2,0.25]
[1646468538024,16.37,2642.1,2641.0,1.1839]
[1646468538025,5.05183224,2642.0,2641.0,1.1839]
[1646468538226,1.55183224,2641.9,2641.0,1.1839]
[1646468538427,1.55183224,2641.9,2640.8,2.8578]
[1646468538828,3.5,2641.8,2640.8,2.8578]
[1646468539028,1.1965923,2641.2,2640.8,2.8578]
[1646468539230,1.1965923,2641.2,2640.4,4.10451929]
[1646468539730,1.1965923,2641.2,2640.9,0.00115535]
[1646468540131,0.07242513,2641.6,2640.9,0.00115535]
[1646468540729,0.07242513,2641.6,2640.4,5.05168929]
[1646468540989,0.07242513,2641.6,2641.1,0.00286764]
[1646468541393,0.91600415,2641.5,2641.1,0.00286764]
[1646468541991,0.91600415,2641.5,2640.9,1.12678074]
[1646468542189,0.91600415,2641.5,2641.2,0.00286762]
[1646468543093,0.91600415,2641.5,2640.4,8.83983069]
[1646468543389,0.91600415,2641.5,2641.2,0.0028676]
[1646468544392,0.91600415,2641.5,2640.4,5.25499163]
[1646468544643,3.57242513,2641.6,2640.4,5.25499163]
[1646468544644,1.138039,2641.0,2640.4,5.25499163]
[1646468545328,4.72252513,2641.6,2640.4,5.25499163]
[1646468545527,1.22252513,2641.6,2640.6,0.94715]
[1646468545729,0.07242513,2641.6,2640.6,0.94825171]
[1646468545935,0.07242513,2641.6,2640.7,1.1367]
[1646468546532,1.16193921,2641.4,2640.8,0.96443696]
[1646468546832,1.16193921,2641.4,2640.7,1.1367]
[1646468547033,1.16193921,2641.4,2641.0,0.00110152]
[1646468547832,1.16193921,2641.4,2640.7,1.1367]
[1646468548033,1.16193921,2641.4,2640.7,2.20892494]
[1646468548382,1.16193921,2641.4,2641.1,0.00108103]
[1646468549189,1.16193921,2641.4,2640.7,1.1367]
[1646468549388,1.16193921,2641.4,2641.1,0.00279663]
[1646468550389,0.90791397,2641.0,2640.4,5.01493547]
[1646468550589,3.5,2640.9,2640.4,4.10451929]
[1646468550989,1.77781397,2641.0,2640.4,4.10451929]
[1646468551991,13.34781397,2641.0,2640.4,4.10451929]
[1646468552440,1.14867018,2640.5,2640.4,4.10451929]
[1646468554244,3.5,2641.2,2640.4,4.10451929]
[1646468555347,3.5,2641.2,2640.7,0.0028703]
[1646468555549,1.08454066,2641.2,2640.7,0.0028703]
[1646468555747,1.0,2641.3,2640.7,0.0028703]
[1646468555981,7.72002513,2641.6,2640.7,0.0028703]
[1646468556183,1.30492513,2641.6,2640.7,0.0028703]
[1646468556382,4.80492513,2641.6,2640.5,1.1048922]
[1646468556583,4.80492513,2641.6,2641.0,0.00287015]
[1646468556982,1.13764935,2641.3,2641.0,0.00287015]
[1646468557583,1.13764935,2641.3,2640.5,1.1048922]
[1646468557785,1.13764935,2641.3,2641.0,0.00287015]
[1646468558783,1.13764935,2641.3,2640.5,1.1048922]
[1646468558984,1.13764935,2641.3,2641.0,0.00287015]
[1646468560023,1.13764935,2641.3,2640.5,1.1048922]
[1646468560223,3.1,2641.2,2640.5,0.85766548]
[1646468561230,1.13764935,2641.3,2640.5,0.85766548]
[1646468562228,1.30492513,2641.6,2640.5,0.85766548]
[1646468562428,1.30492513,2641.6,2640.5,2.10666548]
[1646468562830,4.80492513,2641.6,2640.5,2.10666548]
[1646468563132,1.30492513,2641.6,2640.5,2.10666548]
[1646468563377,0.96174383,2641.4,2640.5,2.10666548]
[1646468563780,0.96174383,2641.4,2640.9,0.00115136]
[1646468564781,0.96174383,2641.4,2640.5,2.10666548]
[1646468564978,0.96174383,2641.4,2640.9,0.00287031]
[1646468565984,0.96174383,2641.4,2640.5,2.10666548]
[1646468566183,0.96174383,2641.4,2640.9,0.00287031]
[1646468567226,0.96174383,2641.4,2640.5,2.10666548]
[1646468567426,0.96174383,2641.4,2640.9,0.00287031]
[1646468568330,0.96174383,2641.4,2640.5,2.10666548]
[1646468568526,0.96174383,2641.4,2640.9,0.0027756]
[1646468569532,0.96174383,2641.4,2640.5,2.10666548]
[1646468569730,0.96174383,2641.4,2640.9,0.0027756]
[1646468570733,0.96174383,2641.4,2640.5,2.29586548]
[1646468570982,0.96174383,2641.4,2640.9,0.0027756]
[1646468571380,0.96174383,2641.4,2640.9,1.15054113]
[1646468571777,0.96174383,2641.4,2640.9,0.0027756]
[1646468571981,0.96174383,2641.4,2640.5,1.4382]
[1646468572179,0.96174383,2641.4,2640.9,0.002658]
[1646468572981,0.07242513,2641.6,2640.9,0.002658]
[1646468573182,1.55236663,2641.5,2640.9,3.27188038]
[1646468573384,5.29,2642.3,2640.9,3.27188038]
[1646468573385,3.5,2642.0,2640.9,0.002658]
[1646468573585,1.55230722,2641.9,2640.9,1.158158]
[1646468573783,8.2624895,2642.2,2640.9,1.158158]
[1646468573784,1.55230722,2641.8,2640.9,1.158158]
[1646468573984,1.55230722,2641.7,2641.0,2.7163]
[1646468574185,2.43580565,2641.6,2641.0,2.7163]
[1646468574387,0.88349843,2641.6,2641.0,2.7163]
[1646468576257,1.55233328,2641.5,2641.0,2.7163]
[1646468577755,5.05233328,2641.5,2641.0,2.7163]
[1646468577956,1.55233328,2641.4,2641.0,2.7163]
[1646468578580,1.10544437,2641.1,2641.0,2.7163]
[1646468578783,2.65777765,2641.1,2641.0,2.7163]
[1646468582536,1.55233328,2641.1,2641.0,2.7163]
[1646468582940,1.55233328,2641.6,2641.0,2.7163]
[1646468583141,1.55233328,2641.5,2641.0,2.7163]
[1646468583341,1.55233328,2641.4,2641.0,2.7163]
[1646468583542,1.55233328,2641.3,2641.0,2.7163]
[1646468583741,1.55233328,2641.2,2641.0,2.7163]
[1646468583945,1.55123101,2641.2,2641.0,2.7163]
[1646468594491,0.69157408,2641.7,2641.0,2.7163]
[1646468595391,0.69157408,2641.7,2641.1,1.13569683]
[1646468595592,1.82347911,2641.7,2641.1,1.13569683]
[1646468595992,1.82347911,2641.7,2641.0,2.7163]
[1646468597236,0.69157408,2641.6,2641.0,2.7163]
[1646468597634,1.13190503,2641.7,2641.0,2.7163]
[1646468597635,1.1935681,2641.1,2641.0,2.7163]
[1646468600537,1.1935681,2641.1,2640.5,1.3986]
[1646468600538,1.65341195,2640.9,2640.5,0.1892]
[1646468602096,1.65341195,2640.9,2640.4,4.10451929]
[1646468602493,0.9410413,2640.6,2640.4,4.10451929]
[1646468603995,1.55272409,2640.5,2640.4,4.10451929]
[1646468608985,1.65341195,2640.9,2640.4,4.10451929]
[1646468609189,1.55267106,2640.8,2640.4,4.10451929]
[1646468609988,1.07535843,2640.7,2640.4,4.10451929]
[1646468610188,1.55267106,2640.6,2640.4,4.10451929]
[1646468610687,1.55267106,2640.6,2640.4,4.10730197]
[1646468611593,1.55267106,2640.6,2640.4,4.10451929]
[1646468611793,1.55267106,2640.6,2640.4,4.10730199]
[1646468612835,1.55267106,2640.6,2640.4,4.10451929]
[1646468613035,1.55267106,2640.6,2640.4,4.10717491]
[1646468613836,1.50267106,2640.6,2640.4,4.10717491]
[1646468614037,1.50267106,2640.6,2640.4,4.10451929]
[1646468614237,1.50267106,2640.6,2640.4,4.10717491]
[1646468615239,1.50267106,2640.6,2640.4,4.10451929]
[1646468615439,1.50267106,2640.6,2640.4,4.10717491]
[1646468616293,1.50267106,2640.6,2640.4,4.10451929]
[1646468616691,1.65341195,2640.9,2640.4,4.1071935]
[1646468617696,1.65341195,2640.9,2640.5,1.00582006]
[1646468617894,1.65341195,2640.9,2640.5,1.00849421]
[1646468618793,1.65341195,2640.9,2640.5,1.00582006]
[1646468619093,1.65341195,2640.9,2640.6,0.00267413]
[1646468619937,1.65341195,2640.9,2640.5,1.00582006]
[1646468620340,1.65341195,2640.9,2640.6,0.0026714]
[1646468622442,1.65341195,2640.9,2640.4,4.10451929]
[1646468622643,0.94562017,2640.8,2640.4,4.10451929]
[1646468623890,0.94562017,2640.8,2640.5,0.00095214]
[1646468624789,0.94562017,2640.8,2640.4,4.10451929]
[1646468624989,0.94562017,2640.8,2640.5,0.00267506]
[1646468625792,1.65341195,2640.9,2640.5,0.00267506]
[1646468625993,1.65341195,2640.9,2640.4,4.10451929]
[1646468626293,1.65341195,2640.9,2640.5,0.00267506]
[1646468627136,1.65341195,2640.9,2640.4,4.10451929]
[1646468627337,0.92728545,2640.8,2640.4,4.10451929]
[1646468627537,0.92728545,2640.8,2640.6,0.00267488]
[1646468628339,0.92728545,2640.8,2640.4,4.10451929]
[1646468628739,4.42728545,2640.8,2640.6,0.00267488]
[1646468629147,3.5,2640.7,2640.6,0.00267488]
[1646468629343,3.5,2640.7,2640.4,4.10451929]
[1646468629344,0.00425738,2640.5,2640.4,4.10451929]
[1646468630547,3.50425738,2640.5,2640.4,4.10451929]
[1646468631195,0.00425738,2640.5,2640.4,4.10451929]
[1646468634837,1.55700144,2640.5,2640.4,4.10451929]
[1646468649403,0.00425738,2640.5,2640.4,4.10451929]
[1646468653397,1.55692125,2640.5,2640.4,4.10451929]
[1646468653988,1.55610184,2640.5,2640.4,4.10451929]
[1646468654191,0.00343797,2640.5,2640.4,4.10451929]
[1646468655997,2.55834473,2640.9,2640.4,4.10451929]
[1646468657444,2.55834473,2640.9,2640.5,0.00267517]
[1646468658444,2.55834473,2640.9,2640.4,4.10451929]
[1646468658649,2.55834473,2640.9,2640.5,0.0026752]
[1646468659647,2.55834473,2640.9,2640.4,4.10451929]
[1646468659848,2.55834473,2640.9,2640.5,0.0026752]
[1646468660451,2.55834473,2640.9,2640.4,4.10026926]
[1646468660452,3.5,2640.8,2640.4,4.10026926]
[1646468660649,4.19157408,2640.8,2640.4,4.10026926]
[1646468662294,4.19157408,2640.8,2640.4,4.10141308]
[1646468663295,4.76337593,2640.8,2640.4,4.10026926]
[1646468663494,4.76337593,2640.8,2640.4,4.10314132]
[1646468664496,4.76337593,2640.8,2640.4,4.10026926]
[1646468664744,4.76337593,2640.8,2640.4,4.10314132]
[1646468665344,1.20235751,2640.5,2640.4,4.10314132]
[1646468665746,1.20235751,2640.5,2640.4,4.10026926]
[1646468665950,1.20235751,2640.5,2640.4,4.10314132]
[1646468666950,1.20235751,2640.5,2640.4,4.10026926]
[1646468669489,1.20235751,2640.5,2640.4,3.10026926]
[1646468673044,4.70235751,2640.5,2640.4,3.10026926]
[1646468673244,1.89393159,2640.5,2640.4,3.10026926]
[1646468673445,5.39393159,2640.5,2640.4,3.10026926]
[1646468673645,1.89393159,2640.5,2640.4,3.10026926]
[1646468673849,16.96393159,2640.5,2640.4,3.10026926]
[1646468674046,13.46393159,2640.5,2640.4,3.10026926]
[1646468674245,12.77235751,2640.5,2640.4,3.10026926]
[1646468674447,16.27235751,2640.5,2640.4,3.10026926]
[1646468674847,1.20235751,2640.5,2640.4,3.10026926]
[1646468676094,2.75526051,2640.5,2640.4,3.10026926]
[1646468680646,2.75526051,2640.5,2640.4,1.44380534]
[1646468683255,17.8253964,2640.5,2640.4,1.44380534]
[1646468683518,18.51697048,2640.5,2640.4,1.44380534]
[1646468683718,17.8253964,2640.5,2640.4,1.44380534]
[1646468683918,18.8253964,2640.5,2640.4,1.44380534]
[1646468684317,19.75593746,2640.5,2640.4,1.44380534]
[1646468684519,22.20494634,2640.5,2640.4,1.44380534]
[1646468684919,20.21293746,2640.5,2640.4,1.44380534]
[1646468685319,19.2823964,2640.5,2640.4,1.44380534]
[1646468691193,17.2823964,2640.5,2640.4,1.44380534]
[1646468691594,18.26280467,2640.5,2640.4,1.44380534]
[1646468692595,7.49044716,2640.5,2640.4,1.44380534]
[1646468692796,8.1858236,2640.5,2640.4,1.44380534]
[1646468692996,4.6858236,2640.5,2640.4,1.44380534]
[1646468693797,3.99044716,2640.5,2640.4,1.44380534]
[1646468694496,4.6858236,2640.5,2640.4,1.44380534]
[1646468694742,3.2288236,2640.5,2640.4,1.44380534]
[1646468694942,2.53344716,2640.5,2640.4,1.44380534]
[1646468695144,3.2288236,2640.5,2640.4,1.44380534]
[1646468695543,2.53344716,2640.5,2640.4,1.44380534]
[1646468695748,3.53344716,2640.5,2640.4,1.44380534]
[1646468696349,15.09344716,2640.5,2640.4,1.44380534]
[1646468697047,3.53344716,2640.5,2640.4,1.44380534]
[1646468697750,2.53344716,2640.5,2640.4,1.44380534]
[1646468697951,3.22898091,2640.5,2640.4,1.44380534]
[1646468698392,2.53344716,2640.5,2640.4,1.44380534]
[1646468698792,3.22897877,2640.5,2640.4,1.44380534]
[1646468698991,2.53344716,2640.5,2640.4,1.44380534]
[1646468699594,3.22896907,2640.5,2640.4,1.44380534]
[1646468700595,0.21295695,2639.8,2639.7,1.62178755]
[1646468700795,0.21295695,2639.8,2639.7,1.25110387]
[1646468700999,1.76599584,2639.8,2639.7,1.25110387]
[1646468701198,1.76599584,2639.8,2639.7,0.01070387]
[1646468701397,1.76599584,2639.8,2639.7,0.20010387]
[1646468701798,2.69726909,2639.8,2639.7,0.1894]
[1646468701996,2.69726909,2639.8,2639.6,0.3792]
[1646468701997,2.69726909,2639.8,2639.6,0.57127564]
[1646468702245,1.55303889,2639.7,2639.6,0.57127564]
[1646468702843,1.55303889,2639.7,2639.6,0.3792]
[1646468704549,1.55318732,2639.7,2639.6,0.3792]
[1646468706895,1.55318732,2639.7,2639.5,3.0755754]
[1646468707596,1.55318732,2639.7,2639.5,3.0729]
[1646468707995,1.55318732,2639.7,2639.5,3.07557542]
[1646468708996,1.55318732,2639.7,2639.5,3.0729]
[1646468709197,1.55318732,2639.7,2639.5,3.07557542]
[1646468710147,1.55318732,2639.7,2639.5,3.0729]
[1646468710347,1.55318732,2639.7,2639.5,3.07557575]
[1646468710747,2.46596518,2639.7,2639.5,3.07557575]
[1646468710948,0.91277786,2639.7,2639.5,3.07557575]
[1646468711350,0.91277786,2639.7,2639.5,2.6937]
[1646468711548,1.55325459,2639.6,2639.5,2.6937]
[1646468711747,1.55325459,2639.6,2639.5,2.69637575]
[1646468712548,1.55325459,2639.6,2639.5,2.6937]
[1646468717345,1.55325459,2639.6,2639.5,1.6937]
[1646468719551,1.55325459,2639.7,2639.5,1.6937]
[1646468719750,1.55325459,2639.6,2639.5,1.6937]
[1646468719950,1.55325459,2639.6,2639.5,2.0729]
[1646468719951,1.55321873,2639.6,2639.5,2.0729]
[1646468720150,0.21295695,2639.8,2639.5,2.0729]
[1646468720352,1.55316605,2639.7,2639.5,2.0729]
[1646468720552,0.21295695,2639.8,2639.6,1.01492333]
[1646468720751,1.553129,2639.7,2639.6,1.01492333]
[1646468721000,0.21295695,2639.8,2639.6,1.01492333]
[1646468721200,1.55313376,2639.7,2639.6,1.01760213]
[1646468721399,0.21295695,2639.8,2639.6,1.01760213]
[1646468721801,1.55315179,2639.7,2639.6,1.01760213]
[1646468722204,1.55315179,2639.7,2639.6,1.01492333]
[1646468722501,1.55315179,2639.7,2639.6,1.01760213]
[1646468723102,1.55315179,2639.7,2639.6,0.0026788]
[1646468723303,1.55315179,2639.7,2639.5,5.05699772]
[1646468723501,1.55315179,2639.7,2639.5,5.05967654]
[1646468724505,1.55315179,2639.7,2639.5,5.05699772]
[1646468724742,1.55315179,2639.7,2639.5,5.05967657]
[1646468725542,1.55315179,2639.7,2639.5,3.36597657]
[1646468725743,1.55315179,2639.7,2639.5,3.36329772]
[1646468725946,1.55315179,2639.7,2639.5,3.36597657]
[1646468726346,2.24888633,2639.7,2639.5,3.36597657]
[1646468727066,2.24888633,2639.7,2639.5,3.36329772]
[1646468727246,2.24888633,2639.7,2639.5,3.36597657]
[1646468727648,1.55315179,2639.6,2639.5,3.36597657]
[1646468728048,1.55315179,2639.7,2639.5,3.36597657]
[1646468728248,1.55315179,2639.6,2639.5,3.36329772]
[1646468729296,1.55315179,2639.7,2639.5,3.36329772]
[1646468729495,1.55315179,2639.6,2639.5,3.36329772]
[1646468729705,4.8,2639.5,2639.4,0.00267887]
[1646468729904,21.41315179,2639.5,2639.4,0.00267887]
[1646468730103,22.87015179,2639.5,2639.4,0.00267887]
[1646468730403,24.86216067,2639.5,2639.4,0.00267887]
[1646468730601,1.0,2639.4,2638.9,0.00278755]
[1646468730803,0.69602723,2639.1,2638.8,2.2331]
[1646468731604,1.55315179,2639.2,2638.5,3.20948755]
[1646468731605,2.24917902,2639.0,2638.5,0.00278755]
[1646468731805,1.55315179,2638.9,2638.1,0.00278755]
[1646468732003,1.55315179,2638.9,2638.8,0.0009489]
[1646468732004,5.05315179,2638.9,2638.8,0.0009489]
[1646468732249,1.55315179,2638.9,2638.8,0.0009489]
[1646468732447,5.05315179,2638.9,2638.8,0.0009489]
[1646468732645,5.97626942,2638.9,2638.8,0.0009489]
[1646468732845,5.97626942,2638.9,2638.1,0.00278755]
[1646468733045,1.55315179,2638.8,2638.1,0.00278755]
[1646468733345,1.55315179,2638.8,2638.7,0.00094893]
[1646468734146,1.55315179,2638.8,2638.3,0.00379631]
[1646468734147,1.55315179,2638.8,2638.1,0.00278755]
[1646468734346,1.15856444,2638.4,2638.1,0.00278755]
[1646468734545,1.15856444,2638.4,2638.2,0.01073119]
[1646468734947,3.5,2639.1,2638.2,0.01073119]
[1646468735148,1.55381472,2639.0,2638.2,0.01073119]
[1646468735449,1.55381472,2638.9,2638.0,0.00278755]
[1646468735649,1.55381472,2638.8,2638.5,0.00281288]
[1646468735894,3.5,2639.1,2638.5,0.00281288]
[1646468736099,1.20922219,2638.9,2638.5,0.00281288]
[1646468736298,1.55377875,2638.8,2638.5,0.00281288]
[1646468736500,1.20922219,2638.9,2638.4,0.95473576]
[1646468736899,1.20922219,2638.9,2638.6,0.00281286]
[1646468737701,1.20922219,2638.9,2638.4,0.95752331]
[1646468737999,1.20922219,2638.9,2638.6,0.00281284]
[1646468739000,1.20922219,2638.9,2638.4,0.95752331]
[1646468739200,1.20922219,2638.9,2638.6,0.00242161]
[1646468740145,1.20922219,2638.9,2638.4,0.95752331]
[1646468740342,1.20922219,2638.9,2638.6,0.00242161]
[1646468740543,4.5,2639.2,2638.6,0.00242161]
[1646468740742,1.55373018,2639.1,2638.6,0.00242161]
[1646468741350,3.57242513,2639.4,2638.4,0.95752331]
[1646468741351,1.55373018,2639.0,2638.4,0.95752331]
[1646468741549,1.06478845,2639.2,2638.4,0.95752331]
[1646468741751,1.06478845,2639.2,2638.7,0.00242157]
[1646468741752,1.553705,2639.1,2638.7,0.00242157]
[1646468742557,0.96460561,2638.8,2638.4,0.00278755]
[1646468742754,0.96460561,2638.8,2638.4,0.00980889]
[1646468743802,0.96460561,2638.8,2638.2,1.15868755]
[1646468744002,0.96460561,2638.8,2638.5,0.0024731]
[1646468745005,0.96460561,2638.8,2638.3,0.00278755]
[1646468745207,0.96460561,2638.8,2638.5,0.00247308]
[1646468746209,0.96460561,2638.8,2638.3,0.00278755]
[1646468746412,0.96460561,2638.8,2638.5,0.00246794]
[1646468747345,0.96460561,2638.8,2638.3,0.00278755]
[1646468747547,0.96460561,2638.8,2638.5,0.00246551]
[1646468748645,0.96460561,2638.8,2638.3,0.00278755]
[1646468748847,0.96460561,2638.8,2638.5,0.00246551]
[1646468749649,1.55389293,2638.7,2638.5,0.00246551]
[1646468749849,0.96460561,2638.8,2638.3,0.00278755]
[1646468750150,1.64534614,2638.1,2638.0,0.25278755]
[1646468750453,1.64534614,2638.1,2637.3,0.44893401]